[Event "SELL Games"]
[Site "Tartu, Estonia"]
[Date "2023.05.19"]
[Round "3.4"]
[White "Sibajeva, Marija"]
[Black "Tvarijonas, Tomas"]
[Result "0-1"]
[TimeControl "15min + 10sec per move each"]
[WhiteTitle "WFM"]
[BlackTitle "FM"]
[WhiteFideId "12807583"]
[BlackFideId "12805432"]
[WhiteElo "1953"]
[BlackElo "2181"]

1. e4 {[%clk 00:15:19]} c5 {[%clk 00:15:16]} {[%emt 00:00:04]} 2. Nf3 {[%clk
00:15:28]} {[%emt 00:00:02]} Nf6 {[%clk 00:15:24]} {[%emt 00:00:01]} 3. Nc3
{[%clk 00:15:32]} {[%emt 00:00:07]} e6 {[%clk 00:15:23]} {[%emt 00:00:11]} 4.
d4 {[%clk 00:15:37]} {[%emt 00:00:04]} cxd4 {[%clk 00:15:31]} {[%emt 00:00:03]}
5. Nxd4 {[%clk 00:15:37]} {[%emt 00:00:10]} Nc6 {[%clk 00:15:30]} {[%emt
00:00:11]} 6. a3 {[%clk 00:15:40]} {[%emt 00:00:08]} Be7 {[%clk 00:15:27]}
{[%emt 00:00:12]} 7. Be3 {[%clk 00:15:28]} {[%emt 00:00:21]} O-O {[%clk
00:15:21]} {[%emt 00:00:17]} 8. Be2 {[%clk 00:15:34]} {[%emt 00:00:03]} d5
{[%clk 00:15:20]} {[%emt 00:00:11]} 9. exd5 {[%clk 00:14:22]} {[%emt 00:01:22]}
Nxd5 {[%clk 00:15:19]} {[%emt 00:00:11]} 10. Nxc6 {[%clk 00:14:20]} {[%emt
00:00:12]} bxc6 {[%clk 00:15:24]} {[%emt 00:00:06]} 11. Nxd5 {[%clk 00:13:59]}
{[%emt 00:00:30]} cxd5 {[%clk 00:15:03]} {[%emt 00:00:30]} 12. f4 {[%clk
00:13:15]} {[%emt 00:00:54]} Qc7 {[%clk 00:13:47]} {[%emt 00:01:27]} 13. O-O
{[%clk 00:13:08]} {[%emt 00:00:16]} Rb8 {[%clk 00:13:20]} {[%emt 00:00:38]} 14.
Rb1 {[%clk 00:12:47]} {[%emt 00:00:31]} Bc5 {[%clk 00:13:01]} {[%emt 00:00:29]}
15. Bxc5 {[%clk 00:12:39]} {[%emt 00:00:18]} Qxc5+ {[%clk 00:13:10]} {[%emt
00:00:01]} 16. Kh1 {[%clk 00:12:39]} {[%emt 00:00:08]} a5 {[%clk 00:11:22]}
{[%emt 00:02:00]} 17. Bd3 {[%clk 00:12:32]} {[%emt 00:00:16]} g6 {[%clk
00:11:07]} {[%emt 00:00:25]} 18. Qe1 {[%clk 00:08:18]} {[%emt 00:04:22]} d4
{[%clk 00:10:09]} {[%emt 00:01:10]} 19. Qg3 {[%clk 00:07:04]} {[%emt 00:01:22]}
Rb6 {[%clk 00:09:25]} {[%emt 00:00:57]} 20. Qh4 {[%clk 00:05:53]} {[%emt
00:01:18]} Bb7 {[%clk 00:08:44]} {[%emt 00:00:54]} 21. Qf6 {[%clk 00:04:59]}
{[%emt 00:00:59]} Qd5 {[%clk 00:06:56]} {[%emt 00:02:03]} 22. Rg1 {[%clk
00:04:47]} {[%emt 00:00:22]} Qd6 {[%clk 00:04:50]} {[%emt 00:02:17]} 23. h4
{[%clk 00:04:12]} {[%emt 00:00:44]} Rb8 {[%clk 00:04:20]} {[%emt 00:00:40]} 24.
Kh2 {[%clk 00:03:44]} {[%emt 00:00:39]} Ba8 {[%clk 00:03:52]} {[%emt 00:00:38]}
25. h5 {[%clk 00:03:07]} {[%emt 00:00:47]} Rxb2 {[%clk 00:02:45]} {[%emt
00:01:17]} 26. hxg6 {[%clk 00:02:52]} {[%emt 00:00:24]} hxg6 {[%clk 00:02:34]}
{[%emt 00:00:22]} 27. Rxb2 {[%clk 00:02:43]} {[%emt 00:00:19]} Rxb2 {[%clk
00:02:41]} {[%emt 00:00:03]} 28. Kg3 {[%clk 00:01:14]} {[%emt 00:01:39]} Qd5
{[%clk 00:02:30]} {[%emt 00:00:22]} 29. Qe5 {[%clk 00:00:27]} {[%emt 00:00:56]}
Qxe5 {[%clk 00:02:09]} {[%emt 00:00:33]} 30. fxe5 {[%clk 00:00:36]} Bd5 {[%clk
00:01:55]} {[%emt 00:00:24]} 31. Rh1 {[%clk 00:00:18]} {[%emt 00:00:27]} Ra2
{[%clk 00:01:51]} {[%emt 00:00:15]} 32. Rh4 {[%clk 00:00:19]} {[%emt 00:00:08]}
Rxa3 {[%clk 00:01:58]} {[%emt 00:00:03]} 33. Rxd4 {[%clk 00:00:28]} {[%emt
00:00:01]} Rc3 {[%clk 00:01:52]} {[%emt 00:00:15]} 34. Kf4 {[%clk 00:00:12]}
{[%emt 00:00:26]} Bxg2 {[%clk 00:01:43]} {[%emt 00:00:20]} 35. Rd8+ {[%clk
00:00:20]} {[%emt 00:00:01]} Kg7 {[%clk 00:01:52]} {[%emt 00:00:02]} 36. Rd7
{[%clk 00:00:12]} {[%emt 00:00:18]} a4 {[%clk 00:01:32]} {[%emt 00:00:29]} 37.
Ra7 {[%clk 00:00:12]} {[%emt 00:00:10]} a3 {[%clk 00:01:38]} {[%emt 00:00:05]}
38. Ke3 {[%clk 00:00:18]} {[%emt 00:00:03]} Rc5 {[%clk 00:01:24]} {[%emt
00:00:24]} 39. Kf4 {[%clk 00:00:21]} {[%emt 00:00:07]} Rc3 {[%clk 00:00:30]}
{[%emt 00:01:05]} 40. Kg5 {[%clk 00:00:18]} {[%emt 00:00:12]} Bd5 {[%clk
00:00:34]} {[%emt 00:00:07]} 0-1

[Event "SELL Games"]
[Site "Tartu, Estonia"]
[Date "2023.05.19"]
[Round "3.5"]
[White "Obolonin, Filipp"]
[Black "Galdikaite, Greta"]
[Result "1-0"]
[TimeControl "15min + 10sec per move each"]
[WhiteFideId "4505549"]
[BlackFideId "12819956"]
[WhiteElo "2017"]
[BlackElo "1195"]

1. d4 {[%clk 00:15:18]} {[%emt 00:00:01]} d5 {[%clk 00:15:14]} {[%emt
00:00:07]} 2. Nf3 {[%clk 00:15:26]} {[%emt 00:00:02]} Nf6 {[%clk 00:15:21]}
{[%emt 00:00:02]} 3. g3 {[%clk 00:15:35]} {[%emt 00:00:02]} Nc6 {[%clk
00:15:23]} {[%emt 00:00:08]} 4. Bg2 {[%clk 00:15:43]} e6 {[%clk 00:15:12]}
{[%emt 00:00:21]} 5. O-O {[%clk 00:15:51]} {[%emt 00:00:02]} b6 {[%clk
00:14:37]} {[%emt 00:00:45]} 6. c4 {[%clk 00:15:16]} {[%emt 00:00:45]} Ba6
{[%clk 00:14:03]} {[%emt 00:00:45]} 7. Qa4 {[%clk 00:15:18]} {[%emt 00:00:08]}
Bb7 {[%clk 00:13:58]} {[%emt 00:00:15]} 8. Ne5 {[%clk 00:15:26]} {[%emt
00:00:01]} a6 {[%clk 00:12:55]} {[%emt 00:01:13]} 9. Bg5 {[%clk 00:15:19]}
{[%emt 00:00:16]} Be7 {[%clk 00:11:49]} {[%emt 00:01:17]} 10. Bxf6 {[%clk
00:15:24]} {[%emt 00:00:05]} Bxf6 {[%clk 00:11:56]} {[%emt 00:00:02]} 11. Nxc6
{[%clk 00:15:32]} {[%emt 00:00:02]} Qd7 {[%clk 00:11:56]} {[%emt 00:00:10]} 12.
cxd5 {[%clk 00:15:41]} {[%emt 00:00:01]} exd5 {[%clk 00:10:44]} {[%emt
00:01:22]} 13. Rc1 {[%clk 00:15:50]} {[%emt 00:00:01]} b5 {[%clk 00:10:41]}
{[%emt 00:00:12]} 14. Qc2 {[%clk 00:15:58]} {[%emt 00:00:02]} O-O {[%clk
00:10:11]} {[%emt 00:00:41]} 15. Ne5 {[%clk 00:16:05]} {[%emt 00:00:02]} Bxe5
{[%clk 00:10:09]} {[%emt 00:00:12]} 16. dxe5 {[%clk 00:16:13]} {[%emt
00:00:02]} c6 {[%clk 00:10:11]} {[%emt 00:00:08]} 17. Nd2 {[%clk 00:16:12]}
{[%emt 00:00:11]} Rfe8 {[%clk 00:09:58]} {[%emt 00:00:23]} 18. Nb3 {[%clk
00:16:13]} {[%emt 00:00:09]} Qe7 {[%clk 00:09:38]} {[%emt 00:00:30]} 19. Nc5
{[%clk 00:16:18]} {[%emt 00:00:06]} Bc8 {[%clk 00:08:06]} {[%emt 00:01:42]} 20.
e3 {[%clk 00:16:10]} {[%emt 00:00:17]} g6 {[%clk 00:06:38]} {[%emt 00:01:38]}
21. a4 {[%clk 00:16:10]} {[%emt 00:00:11]} Bf5 {[%clk 00:06:36]} {[%emt
00:00:12]} 22. e4 {[%clk 00:16:18]} {[%emt 00:00:01]} dxe4 {[%clk 00:06:26]}
{[%emt 00:00:19]} 23. Bxe4 {[%clk 00:16:27]} {[%emt 00:00:02]} Bxe4 {[%clk
00:06:27]} {[%emt 00:00:09]} 24. Qxe4 {[%clk 00:16:33]} {[%emt 00:00:02]} Rec8
{[%clk 00:06:02]} {[%emt 00:00:36]} 25. a5 {[%clk 00:16:30]} {[%emt 00:00:14]}
Qe8 {[%clk 00:05:20]} {[%emt 00:00:52]} 26. b4 {[%clk 00:16:37]} {[%emt
00:00:03]} Rc7 {[%clk 00:05:24]} {[%emt 00:00:06]} 27. e6 {[%clk 00:16:42]}
{[%emt 00:00:04]} Re7 {[%clk 00:05:32]} {[%emt 00:00:03]} 28. exf7+ {[%clk
00:16:50]} {[%emt 00:00:02]} Rxf7 {[%clk 00:05:39]} {[%emt 00:00:02]} 29. Qxe8+
{[%clk 00:16:56]} {[%emt 00:00:04]} Rxe8 {[%clk 00:05:47]} {[%emt 00:00:02]} 30.
Nxa6 {[%clk 00:17:04]} {[%emt 00:00:02]} Rf6 {[%clk 00:05:55]} {[%emt
00:00:02]} 31. Nc5 {[%clk 00:17:08]} {[%emt 00:00:06]} Ra8 {[%clk 00:05:34]}
{[%emt 00:00:32]} 32. Rd1 {[%clk 00:17:08]} {[%emt 00:00:09]} Rf7 {[%clk
00:05:37]} {[%emt 00:00:06]} 33. Rd6 {[%clk 00:17:15]} {[%emt 00:00:03]} Rc7
{[%clk 00:05:35]} {[%emt 00:00:12]} 34. a6 {[%clk 00:17:23]} {[%emt 00:00:02]}
Kf8 {[%clk 00:05:36]} {[%emt 00:00:09]} 35. Ne6+ {[%clk 00:17:30]} {[%emt
00:00:03]} 1-0

[Event "SELL Games"]
[Site "Tartu, Estonia"]
[Date "2023.05.19"]
[Round "3.6"]
[White "Maciuityte, Greta"]
[Black "Simkunaite, Gabija"]
[Result "0-1"]
[TimeControl "15min + 10sec per move each"]
[BlackTitle "WFM"]
[WhiteFideId "12806765"]
[BlackFideId "12808253"]
[WhiteElo "1715"]
[BlackElo "1964"]

1. e4 {[%clk 00:15:18]} {[%emt 00:01:27]} c6 {[%clk 00:15:18]} {[%emt
00:00:03]} 2. d4 {[%clk 00:15:26]} {[%emt 00:00:02]} d5 {[%clk 00:15:27]} 3. e5
{[%clk 00:15:32]} {[%emt 00:00:04]} c5 {[%clk 00:15:32]} {[%emt 00:00:04]} 4.
c3 {[%clk 00:15:41]} {[%emt 00:00:01]} Nc6 {[%clk 00:15:39]} {[%emt 00:00:03]}
5. Nf3 {[%clk 00:15:26]} {[%emt 00:00:25]} cxd4 {[%clk 00:15:39]} {[%emt
00:00:10]} 6. cxd4 {[%clk 00:15:35]} {[%emt 00:00:01]} Bg4 {[%clk 00:15:41]}
{[%emt 00:00:07]} 7. Be2 {[%clk 00:15:43]} {[%emt 00:00:02]} e6 {[%clk
00:15:39]} {[%emt 00:00:12]} 8. O-O {[%clk 00:15:46]} {[%emt 00:00:06]} Nge7
{[%clk 00:15:44]} {[%emt 00:00:05]} 9. Nc3 {[%clk 00:15:50]} {[%emt 00:00:07]}
Nf5 {[%clk 00:15:43]} {[%emt 00:00:10]} 10. Be3 {[%clk 00:15:58]} {[%emt
00:00:02]} Be7 {[%clk 00:15:47]} {[%emt 00:00:05]} 11. Rb1 {[%clk 00:15:01]}
{[%emt 00:01:07]} O-O {[%clk 00:15:52]} {[%emt 00:00:05]} 12. a3 {[%clk
00:15:06]} {[%emt 00:00:06]} Rc8 {[%clk 00:15:53]} {[%emt 00:00:08]} 13. Qd3
{[%clk 00:15:02]} {[%emt 00:00:13]} a6 {[%clk 00:15:25]} {[%emt 00:00:39]} 14.
h3 {[%clk 00:15:06]} {[%emt 00:00:06]} Nxe3 {[%clk 00:15:25]} {[%emt 00:00:11]}
15. fxe3 {[%clk 00:15:12]} {[%emt 00:00:03]} Bf5 {[%clk 00:15:33]} {[%emt
00:00:02]} 16. Qd1 {[%clk 00:14:17]} {[%emt 00:01:05]} Bxb1 {[%clk 00:15:32]}
{[%emt 00:00:12]} 17. Qxb1 {[%clk 00:14:26]} {[%emt 00:00:01]} Bg5 {[%clk
00:15:09]} {[%emt 00:00:33]} 18. Qd3 {[%clk 00:14:03]} {[%emt 00:00:33]} Bh6
{[%clk 00:14:26]} {[%emt 00:00:53]} 19. Bd1 {[%clk 00:13:05]} {[%emt 00:01:08]}
g6 {[%clk 00:14:00]} {[%emt 00:00:36]} 20. Ne2 {[%clk 00:12:50]} {[%emt
00:00:24]} Qb6 {[%clk 00:13:37]} {[%emt 00:00:34]} 21. b4 {[%clk 00:12:39]}
{[%emt 00:00:21]} Ne7 {[%clk 00:13:39]} {[%emt 00:00:08]} 22. Ng3 {[%clk
00:11:58]} {[%emt 00:00:52]} Qc6 {[%clk 00:13:24]} {[%emt 00:00:25]} 23. e4
{[%clk 00:09:11]} {[%emt 00:02:56]} Qc3 {[%clk 00:12:53]} {[%emt 00:00:41]} 24.
Qb1 {[%clk 00:07:56]} {[%emt 00:01:25]} Qxa3 {[%clk 00:12:20]} {[%emt
00:00:44]} 25. exd5 {[%clk 00:07:18]} {[%emt 00:00:47]} exd5 {[%clk 00:11:28]}
{[%emt 00:01:01]} 26. Be2 {[%clk 00:03:37]} {[%emt 00:03:50]} Qe3+ {[%clk
00:11:36]} {[%emt 00:00:02]} 27. Kh1 {[%clk 00:03:36]} {[%emt 00:00:11]} Bf4
{[%clk 00:11:45]} {[%emt 00:00:01]} 28. Nh5 {[%clk 00:00:41]} {[%emt 00:03:05]}
gxh5 {[%clk 00:10:32]} {[%emt 00:01:24]} 29. Bd3 {[%clk 00:00:42]} {[%emt
00:00:10]} Rc1 {[%clk 00:10:05]} {[%emt 00:00:37]} 30. Bxh7+ {[%clk 00:00:15]}
{[%emt 00:00:36]} Kh8 {[%clk 00:10:12]} {[%emt 00:00:03]} 31. Rxc1 {[%clk
00:00:14]} {[%emt 00:00:12]} Qxc1+ {[%clk 00:10:20]} {[%emt 00:00:01]} 32. Qxc1
{[%clk 00:00:22]} {[%emt 00:00:01]} Bxc1 {[%clk 00:10:29]} {[%emt 00:00:02]} 33.
Bd3 {[%clk 00:00:31]} {[%emt 00:00:02]} Bf4 {[%clk 00:10:32]} {[%emt 00:00:06]}
34. Ng1 {[%clk 00:00:21]} {[%emt 00:00:20]} Nc6 {[%clk 00:10:35]} {[%emt
00:00:07]} 35. Ne2 {[%clk 00:00:25]} {[%emt 00:00:06]} Be3 {[%clk 00:10:44]}
{[%emt 00:00:01]} 0-1

[Event "SELL Games"]
[Site "Tartu, Estonia"]
[Date "2023.05.19"]
[Round "3.7"]
[White "Piksis, Davids"]
[Black "Perminaite, Guoda"]
[Result "1-0"]
[TimeControl "15min + 10sec per move each"]
[WhiteFideId "11609117"]
[BlackFideId "12808784"]
[WhiteElo "1770"]
[BlackElo "1725"]

1. e4 {[%clk 00:15:19]} e5 {[%clk 00:15:19]} {[%emt 00:00:01]} 2. Nf3 {[%clk
00:15:28]} {[%emt 00:00:01]} Nc6 {[%clk 00:15:28]} {[%emt 00:00:01]} 3. Bb5
{[%clk 00:15:36]} {[%emt 00:00:02]} a6 {[%clk 00:15:37]} {[%emt 00:00:01]} 4.
Ba4 {[%clk 00:15:46]} {[%emt 00:00:01]} b5 {[%clk 00:15:45]} {[%emt 00:00:01]}
5. Bb3 {[%clk 00:15:55]} {[%emt 00:00:01]} g6 {[%clk 00:15:53]} 6. c3 {[%clk
00:15:49]} {[%emt 00:00:17]} Bg7 {[%clk 00:16:00]} {[%emt 00:00:03]} 7. d4
{[%clk 00:15:40]} {[%emt 00:00:19]} exd4 {[%clk 00:16:08]} {[%emt 00:00:02]} 8.
cxd4 {[%clk 00:15:49]} {[%emt 00:00:01]} Nge7 {[%clk 00:16:16]} {[%emt
00:00:02]} 9. Nc3 {[%clk 00:12:54]} {[%emt 00:03:05]} O-O {[%clk 00:16:21]}
{[%emt 00:00:05]} 10. O-O {[%clk 00:13:02]} {[%emt 00:00:02]} d6 {[%clk
00:16:29]} {[%emt 00:00:02]} 11. h3 {[%clk 00:11:33]} {[%emt 00:01:39]} Bb7
{[%clk 00:16:22]} {[%emt 00:00:18]} 12. Be3 {[%clk 00:10:41]} {[%emt 00:01:01]}
Na5 {[%clk 00:16:23]} {[%emt 00:00:08]} 13. Bc2 {[%clk 00:10:37]} {[%emt
00:00:14]} Nc4 {[%clk 00:15:44]} {[%emt 00:00:49]} 14. Bc1 {[%clk 00:07:32]}
{[%emt 00:03:16]} c5 {[%clk 00:15:27]} {[%emt 00:00:27]} 15. b3 {[%clk
00:05:28]} {[%emt 00:02:13]} Nb6 {[%clk 00:14:20]} {[%emt 00:01:16]} 16. Be3
{[%clk 00:05:15]} {[%emt 00:00:23]} Rc8 {[%clk 00:13:51]} {[%emt 00:00:39]} 17.
Ne2 {[%clk 00:04:24]} {[%emt 00:01:01]} Nc6 {[%clk 00:09:11]} {[%emt 00:04:50]}
18. Rb1 {[%clk 00:03:00]} {[%emt 00:01:34]} cxd4 {[%clk 00:09:14]} {[%emt
00:00:07]} 19. Nexd4 {[%clk 00:03:01]} {[%emt 00:00:08]} Nb4 {[%clk 00:08:56]}
{[%emt 00:00:28]} 20. Rb2 {[%clk 00:01:02]} {[%emt 00:02:09]} Nxc2 {[%clk
00:08:55]} {[%emt 00:00:11]} 21. Rxc2 {[%clk 00:01:06]} {[%emt 00:00:07]} Bxe4
{[%clk 00:08:55]} {[%emt 00:00:10]} 22. Rxc8 {[%clk 00:01:11]} {[%emt
00:00:06]} Nxc8 {[%clk 00:08:32]} {[%emt 00:00:32]} 23. Qd2 {[%clk 00:01:05]}
{[%emt 00:00:16]} Re8 {[%clk 00:07:02]} {[%emt 00:01:40]} 24. Rc1 {[%clk
00:01:06]} {[%emt 00:00:09]} Ne7 {[%clk 00:06:52]} {[%emt 00:00:19]} 25. Bf4
{[%clk 00:00:58]} {[%emt 00:00:18]} Nd5 {[%clk 00:06:05]} {[%emt 00:00:57]} 26.
Bg3 {[%clk 00:00:52]} {[%emt 00:00:17]} Ne7 {[%clk 00:04:32]} {[%emt 00:01:43]}
27. Ng5 {[%clk 00:00:33]} {[%emt 00:00:29]} Bb7 {[%clk 00:02:57]} {[%emt
00:01:46]} 28. Qf4 {[%clk 00:00:25]} {[%emt 00:00:18]} Bd5 {[%clk 00:02:16]}
{[%emt 00:00:51]} 29. Ndf3 {[%clk 00:00:14]} {[%emt 00:00:21]} Nf5 {[%clk
00:01:50]} {[%emt 00:00:36]} 30. Rd1 {[%clk 00:00:23]} Bxf3 {[%clk 00:00:43]}
{[%emt 00:01:16]} 31. Nxf3 {[%clk 00:00:32]} {[%emt 00:00:02]} Nxg3 {[%clk
00:00:30]} {[%emt 00:00:23]} 32. Qxg3 {[%clk 00:00:36]} {[%emt 00:00:06]} d5
{[%clk 00:00:37]} {[%emt 00:00:03]} 33. Qf4 {[%clk 00:00:33]} {[%emt 00:00:13]}
h6 {[%clk 00:00:32]} {[%emt 00:00:16]} 34. Qd2 {[%clk 00:00:29]} {[%emt
00:00:14]} Qf6 {[%clk 00:00:16]} {[%emt 00:00:26]} 35. Qxd5 {[%clk 00:00:25]}
{[%emt 00:00:15]} Re2 {[%clk 00:00:20]} {[%emt 00:00:05]} 36. Rd2 {[%clk
00:00:16]} {[%emt 00:00:20]} Qa1+ {[%clk 00:00:26]} {[%emt 00:00:03]} 37. Kh2
{[%clk 00:00:25]} Rxd2 38. Qxd2 {[%clk 00:00:33]} Kh7 {[%clk 00:00:17]} {[%emt
00:00:12]} 39. g3 {[%clk 00:00:32]} {[%emt 00:00:11]} Bc3 {[%clk 00:00:24]}
{[%emt 00:00:03]} 40. Qe2 {[%clk 00:00:33]} {[%emt 00:00:09]} Kg7 {[%clk
00:00:26]} {[%emt 00:00:06]} 41. Kg2 {[%clk 00:00:41]} {[%emt 00:00:04]} Qb2
{[%clk 00:00:24]} {[%emt 00:00:11]} 42. Qxb2 {[%clk 00:00:34]} {[%emt
00:00:19]} Bxb2 {[%clk 00:00:33]} {[%emt 00:00:01]} 43. a4 {[%clk 00:00:32]}
{[%emt 00:00:12]} bxa4 {[%clk 00:00:35]} {[%emt 00:00:08]} 44. bxa4 {[%clk
00:00:41]} {[%emt 00:00:01]} Kf6 {[%clk 00:00:40]} {[%emt 00:00:05]} 45. g4
{[%clk 00:00:31]} {[%emt 00:00:20]} Ke6 {[%clk 00:00:43]} {[%emt 00:00:07]} 46.
Kg3 {[%clk 00:00:37]} {[%emt 00:00:04]} Kd5 {[%clk 00:00:33]} {[%emt 00:00:18]}
47. Kf4 {[%clk 00:00:32]} {[%emt 00:00:17]} Bc1+ {[%clk 00:00:20]} {[%emt
00:00:23]} 48. Kg3 {[%clk 00:00:41]} g5 {[%clk 00:00:24]} {[%emt 00:00:06]} 49.
h4 {[%clk 00:00:48]} {[%emt 00:00:03]} Bf4+ {[%clk 00:00:30]} {[%emt 00:00:04]}
50. Kh3 {[%clk 00:00:56]} {[%emt 00:00:02]} Kc4 {[%clk 00:00:37]} {[%emt
00:00:03]} 51. Ne1 {[%clk 00:00:47]} {[%emt 00:00:19]} Bd2 {[%clk 00:00:21]}
{[%emt 00:00:24]} 52. Nf3 {[%clk 00:00:55]} {[%emt 00:00:04]} Bf4 {[%clk
00:00:25]} {[%emt 00:00:06]} 53. Ne1 {[%clk 00:01:05]} Kb3 {[%clk 00:00:17]}
{[%emt 00:00:18]} 54. a5 {[%clk 00:01:10]} {[%emt 00:00:05]} Bd2 {[%clk
00:00:16]} {[%emt 00:00:11]} 55. Nd3 {[%clk 00:01:10]} {[%emt 00:00:10]} Ka4
{[%emt 00:00:13]} 1-0

[Event "SELL Games"]
[Site "Tartu, Estonia"]
[Date "2023.05.19"]
[Round "3.8"]
[White "Vanagaite, Giedre"]
[Black "Vaskevicius, Augustas"]
[Result "1/2-1/2"]
[TimeControl "15min + 10sec per move each"]
[WhiteTitle "WFM"]
[WhiteFideId "12800546"]
[BlackFideId "12808008"]
[WhiteElo "1995"]
[BlackElo "1904"]

1. d4 {[%clk 00:15:19]} {[%emt 00:01:28]} d5 {[%clk 00:15:02]} {[%emt
00:00:18]} 2. Nf3 {[%clk 00:15:27]} {[%emt 00:00:02]} Nf6 {[%clk 00:14:54]}
{[%emt 00:00:18]} 3. c4 {[%clk 00:15:36]} {[%emt 00:00:02]} e6 {[%clk
00:14:42]} {[%emt 00:00:22]} 4. Nc3 {[%clk 00:15:43]} {[%emt 00:00:02]} Bb4
{[%clk 00:14:45]} {[%emt 00:00:07]} 5. Bg5 {[%clk 00:15:43]} {[%emt 00:00:10]}
h6 {[%clk 00:14:49]} {[%emt 00:00:06]} 6. Bh4 {[%clk 00:15:51]} {[%emt
00:00:02]} g5 {[%clk 00:14:52]} {[%emt 00:00:07]} 7. Bg3 {[%clk 00:15:59]}
{[%emt 00:00:02]} Ne4 {[%clk 00:15:00]} {[%emt 00:00:01]} 8. Qc2 {[%clk
00:15:33]} {[%emt 00:00:37]} h5 {[%clk 00:13:42]} {[%emt 00:01:28]} 9. h3
{[%clk 00:14:02]} {[%emt 00:01:41]} Nxg3 {[%clk 00:12:22]} {[%emt 00:01:30]} 10.
fxg3 {[%clk 00:14:10]} {[%emt 00:00:02]} Qd6 {[%clk 00:11:11]} {[%emt
00:01:21]} 11. O-O-O {[%clk 00:12:24]} {[%emt 00:01:56]} Bxc3 {[%clk 00:09:38]}
{[%emt 00:01:43]} 12. Qxc3 {[%clk 00:12:33]} {[%emt 00:00:02]} Qxg3 {[%clk
00:08:33]} {[%emt 00:01:14]} 13. cxd5 {[%clk 00:12:36]} {[%emt 00:00:08]} exd5
{[%clk 00:08:03]} {[%emt 00:00:40]} 14. Qe3+ {[%clk 00:12:35]} {[%emt
00:00:10]} Be6 {[%clk 00:07:44]} {[%emt 00:00:29]} 15. Qxg5 {[%clk 00:12:39]}
{[%emt 00:00:08]} Qxg5+ {[%clk 00:07:24]} {[%emt 00:00:29]} 16. Nxg5 {[%clk
00:12:47]} {[%emt 00:00:01]} Rg8 {[%clk 00:06:48]} {[%emt 00:00:46]} 17. h4
{[%clk 00:12:36]} {[%emt 00:00:22]} Nc6 {[%clk 00:04:52]} {[%emt 00:02:06]} 18.
e3 {[%clk 00:11:46]} {[%emt 00:01:01]} Bg4 {[%clk 00:04:29]} {[%emt 00:00:32]}
19. Re1 {[%clk 00:11:54]} {[%emt 00:00:01]} f6 {[%clk 00:04:27]} {[%emt
00:00:13]} 20. Nf3 {[%clk 00:11:14]} {[%emt 00:00:50]} O-O-O {[%clk 00:04:34]}
{[%emt 00:00:02]} 21. Be2 {[%clk 00:09:54]} {[%emt 00:01:30]} a6 {[%clk
00:03:50]} {[%emt 00:00:55]} 22. Rhf1 {[%clk 00:09:40]} {[%emt 00:00:24]} Rde8
{[%clk 00:03:43]} {[%emt 00:00:17]} 23. Kd2 {[%clk 00:09:46]} {[%emt 00:00:04]}
Ne7 {[%clk 00:02:43]} {[%emt 00:01:10]} 24. Bd3 {[%clk 00:07:53]} {[%emt
00:02:03]} Bf5 {[%clk 00:02:26]} {[%emt 00:00:26]} 25. Rf2 {[%clk 00:05:13]}
{[%emt 00:02:50]} Rg3 {[%clk 00:01:43]} {[%emt 00:00:53]} 26. Ng1 {[%clk
00:02:19]} {[%emt 00:03:04]} Bxd3 {[%clk 00:00:50]} {[%emt 00:01:03]} 27. Kxd3
{[%clk 00:02:28]} {[%emt 00:00:01]} Reg8 {[%clk 00:01:00]} 28. Ree2 {[%clk
00:01:45]} {[%emt 00:00:53]} Kd7 {[%clk 00:00:46]} {[%emt 00:00:23]} 29. Nh3
{[%clk 00:01:08]} {[%emt 00:00:47]} R8g4 {[%clk 00:00:30]} {[%emt 00:00:27]} 30.
Nf4 {[%clk 00:00:41]} {[%emt 00:00:37]} Rxh4 {[%clk 00:00:28]} {[%emt
00:00:11]} 31. Nh3 {[%clk 00:00:27]} {[%emt 00:00:24]} Rhg4 {[%clk 00:00:29]}
{[%emt 00:00:09]} 32. Rxf6 {[%clk 00:00:23]} {[%emt 00:00:14]} Rxg2 {[%clk
00:00:37]} {[%emt 00:00:02]} 33. Rh6 {[%clk 00:00:30]} {[%emt 00:00:04]} Rxe2
34. Kxe2 {[%clk 00:00:38]} Rg2+ {[%clk 00:00:48]} {[%emt 00:00:01]} 35. Nf2
{[%clk 00:00:40]} {[%emt 00:00:09]} Rg5 {[%clk 00:00:33]} {[%emt 00:00:25]} 36.
Kf3 {[%clk 00:00:43]} {[%emt 00:00:06]} Rf5+ {[%clk 00:00:32]} {[%emt
00:00:12]} 37. Kg3 {[%clk 00:00:47]} {[%emt 00:00:06]} Rg5+ {[%clk 00:00:41]}
{[%emt 00:00:01]} 38. Kf3 {[%clk 00:00:56]} Rf5+ {[%clk 00:00:27]} {[%emt
00:00:24]} 39. Kg3 {[%clk 00:01:05]} Rg5+ {[%clk 00:00:20]} {[%emt 00:00:17]}
40. Kf3 {[%clk 00:01:14]} Rf5+ {[%clk 00:00:28]} {[%emt 00:00:04]} 41. Kg3
{[%clk 00:01:24]} Rg5+ {[%emt 00:00:09]} 1/2-1/2